[Event "Fagernes GM Open Autumn 2024"]
[Site "Fagernes"]
[Date "2024.10.11"]
[Round "7.5"]
[White "Blomqvist, Erik"]
[Black "Moksh Amit Doshi"]
[Result "0-1"]
[ECO "C47"]
[WhiteElo "2483"]
[BlackElo "2377"]
[Annotator "TA"]
[PlyCount "118"]
[EventDate "2024.10.03"]
[EventType "swiss"]
[EventCountry "NOR"]
[SourceTitle "playchess.com"]
[Source "ChessBase"]
[SourceQuality "1"]
[TimeControl "40/6000:2400+30"]

{[%evp 9,118,-17,0,0,0,0,0,0,0,0,23,10,9,19,15,18,24,11,11,0,14,0,6,0,0,0,6,9,0,-10,-8,-33,-23,-30,-4,-38,-14,-52,-27,-45,-50,-43,54,-29,-27,-40,-15,-27,-21,-17,-17,-66,-54,-100,-73,-80,-80,-107,-115,-181,-116,-190,-177,-254,-254,-215,-199,-195,-190,-198,-214,-214,-208,-222,-216,-273,-264,-330,-304,-338,-306,-344,-316,-350,-255,-349,-329,-395,-388,-385,-398,-385,-404,-400,-400,-402,-372,-681,-678,-681,-693,-693,-656,-667,-620,-1089,-1069,-1532,-1497,-1186,-1112]} 1. e4 {[%emt 0:00:00]} e5 {[%emt 0:05:26]} 2. Nf3 {[%emt 0:00:00]} Nc6 {[%emt 0:00:00]} 3. Nc3 {[%emt 0:00:00]} Nf6 {[%emt 0:00:00]} 4. Nd5 {[%emt 0:00:00]} Bc5 {[%emt 0:08:34]} 5. c3 {[%emt 0:00:00]} O-O {[%emt 0:03:18]} 6. d3 {[%emt 0:00:00][%cal Bd2d3,Bd3d4][%mdl 32]} Nxd5 {[%emt 0:06:27]} 7. exd5 {[%emt 0:00:00]} Ne7 {[%emt 0:00:00]} 8. Nxe5 {[%emt 0:00:00] Die Stellung ist ausgeglichen.} Nxd5 {[%emt 0:00:13]} 9. d4 {[%emt 0:00:00]} Be7 {[%emt 0:01:10]} 10. Qf3 {[%emt 0:00:00]} c6 {[%emt 0:02:01]} 11. Bd3 {[%emt 0:00:00]} d6 {[%emt 0:02:58]} 12. Nc4 {[%emt 0:00:00]} Be6 {[%emt 0:06:25]} 13. O-O {[%emt 0:00:00]} Qd7 {[%emt 0:03:40]} 14. a4 {[%emt 0:06:32]} Rad8 {[%emt 0:07:39]} 15. h3 {[%emt 0:03:00]} f5 {[%emt 0:01:25]} 16. Re1 {[%emt 0:11:28]} Rde8 {[%emt 0:02:49]} 17. Ne3 {[%emt 0:06:42][%cal Bc4e3,Be3f1,Bf1g3][%mdl 32]} Bg5 {[%emt 0:05:53]} 18. Nf1 {[%emt 0:05:51]} ({Aber nicht} 18. Nxf5 $2 Bxc1 19. Raxc1 Bxf5 $19) 18... Qd8 {[%emt 0:03:22]} 19. Ng3 {[%emt 0:11:06]} g6 {[%emt 0:01:11]} 20. a5 {[%emt 0:05:47]} Bf7 {[%emt 0:01:13]} 21. Ne2 {[%emt 0:05:38]} Bxc1 {[%emt 0:07:04]} 22. Rexc1 {[%emt 0:00:00]} Nf6 {[%emt 0:05:27][%cal Bd5f6,Bf6h5,Bh5f4][%mdl 32]} 23. Qf4 {[%emt 0:03:48]} Nh5 $1 {[%emt 0:01:47]} 24. Qh6 {[%emt 0:09:07]} Qh4 {[%emt 0:02:04] ...f4 wäre nun fies.} 25. Ng3 {[%emt 0:01:31]} Re6 {[%emt 0:00:39]} (25... Qf4 $15 26. Qxf4 Nxf4) 26. Re1 {[%emt 0:07:13]} (26. d5 $14 Rf6 27. Ra4 Qxa4 28. Nxh5 gxh5 29. Qxf6) 26... Qf4 $11 {[%emt 0:00:44]} 27. Qxf4 {[%emt 0:00:01]} Nxf4 {[%emt 0:00:00]} 28. Rxe6 {[%emt 0:00:00]} Bxe6 {[%emt 0:00:00]} 29. Bf1 {[%emt 0:00:38]} Re8 {[%emt 0:00:17]} 30. c4 {[%emt 0:04:30]} (30. Ne2 $11 Nd5 31. Nc1) 30... Bf7 $15 {[%emt 0:04:49]} 31. b4 {[%emt 0:05:30] Die Straße ins Nirgendwo für Weiß.} (31. h4 $15) 31... Kg7 {[%emt 0:00:33] Schwarz steht aktiver.} 32. c5 {[%emt 0:05:21]} a6 {[%emt 0:03:01]} 33. f3 {[%emt 0:02:44]} Re3 {[%emt 0:01:27]} 34. Rb1 {[%emt 0:00:22] [#]} (34. cxd6 $17 Kf6 35. Rc1) 34... Kf6 {[%emt 0:00:39]} (34... d5 $1 $19 35. Kf2 Ra3) 35. Kf2 {[%emt 0:01:11]} (35. cxd6 $17 Re6 36. Rd1 (36. d7 Rd6 $17)) 35... Ra3 {[%emt 0:01:38]} 36. Rb2 {[%emt 0:00:00]} (36. Ne2 $142 Nd3+ 37. Kg3) 36... Bd5 $19 {[%emt 0:00:27][%cal Of4h3]} 37. h4 {[%emt 0:00:00]} Ke7 {[%emt 0:01:10]} 38. h5 {[%emt 0:00:45]} Kd7 {[%emt 0:00:00]} 39. hxg6 {[%emt 0:00:33]} hxg6 {[%emt 0:00:00]} 40. Ke1 {[%emt 0:00:00]} Ne6 {[%emt 0:00:00]} 41. Ne2 {[%emt 0:03:31]} Bc4 {[%emt 0:02:36]} 42. Kf2 {[%emt 0:08:15]} d5 {[%emt 0:01:46]} 43. Ng1 {[%emt 0:05:26]} Bxf1 {[%emt 0:06:47]} (43... Nxd4 44. Bxc4 dxc4 45. Rd2 $11) 44. Kxf1 {[%emt 0:00:06]} Nxd4 {[%emt 0:00:12][%mdl 4096] Endspiel. KRN-KRN} 45. Nh3 {[%emt 0:00:37]} Ke7 {[%emt 0:01:01]} 46. f4 {[%emt 0:03:06]} Rc3 {[%emt 0:01:43]} 47. Ke1 {[%emt 0:03:48]} Kf6 {[%emt 0:03:35]} 48. Ng5 {[%emt 0:00:36]} Ne6 {[%emt 0:03:39]} 49. Nh3 {[%emt 0:00:21]} Rc4 {[%emt 0:02:58]} 50. g3 {[%emt 0:00:21]} Rc3 {[%emt 0:00:05] Wehrt Rb3 ab} 51. Kf2 {[%emt 0:01:16]} g5 {[%emt 0:00:46]} 52. fxg5+ {[%emt 0:00:53]} Nxg5 {[%emt 0:00:20]} 53. Nf4 {[%emt 0:00:23]} (53. Nxg5 Kxg5 54. Re2) 53... Ne4+ {[%emt 0:00:08] Schwarz steht klar auf Gewinn.} 54. Ke1 {[%emt 0:00:03]} Rc1+ {[%emt 0:00:21]} 55. Ke2 {[%emt 0:00:06]} Nxg3+ {[%emt 0:00:28]} 56. Ke3 {[%emt 0:01:20]} Rc3+ {[%emt 0:00:42]} 57. Nd3 {[%emt 0:00:08] [#]} f4+ $1 {[%emt 0:01:19]} 58. Kd2 {[%emt 0:00:24]} (58. Kxf4 Rxd3) 58... Ne4+ {[%emt 0:00:05]} 59. Ke2 {[%emt 0:00:08]} Kg5 {[%emt 0:00:12] Gewichteter Fehlerwert: Weiß=0.41/Schwarz=0.09 (makellos) .  Fehler:       	Weiß=7     	Schwarz=2     Ungenau:       	Weiß=4     	Schwarz=1     OK:         	Weiß=14    	Schwarz=25    Bester:       	Weiß=3     	---        Stark:        	---       	Schwarz=1} 0-1

[Event "Fagernes GM Open Autumn 2024"]
[Site "Fagernes"]
[Date "2024.10.11"]
[Round "7.6"]
[White "Aizenberg, Benny"]
[Black "Kanyamarala, Tarun"]
[Result "1/2-1/2"]
[ECO "B32"]
[WhiteElo "2423"]
[BlackElo "2369"]
[Annotator "TA"]
[PlyCount "119"]
[EventDate "2024.10.03"]
[EventType "swiss"]
[EventCountry "NOR"]
[SourceTitle "playchess.com"]
[Source "ChessBase"]
[SourceQuality "1"]
[TimeControl "40/6000:2400+30"]

{[%evp 14,119,38,49,28,31,46,27,32,40,40,54,46,39,52,26,63,53,54,50,61,13,25,26,0,-2,60,46,51,19,25,8,12,16,18,24,8,18,19,29,30,18,15,21,13,6,55,11,36,35,42,0,0,0,0,-100,0,0,0,0,0,0,0,0,0,0,13,13,13,0,0,0,0,0,0,0,7,0,0,0,0,0,0,0,0,0,0,0,0,0,0,0,0,0,0,0,0,0,0,0,0,0,0,0,0,0,0,0]} 1. e4 {[%emt 0:00:00]} c5 {[%emt 0:00:00]} 2. Nf3 {[%emt 0:00:00][%cal Bg1f3,Bf3d4,Bd4b5,Bb5a3,Ba3c4][%mdl 32] EV=24.08} Nc6 {[%emt 0:00:00]} 3. d4 {[%emt 0:00:00]} cxd4 {[%emt 0:00:00]} 4. Nxd4 {[%emt 0:00:00]} e5 {[%emt 0:00:00]} 5. Nb5 {[%emt 0:00:00]} d6 {[%emt 0:00:00]} 6. N1c3 {[%emt 0:00:00]} a6 {[%emt 0:00:00]} 7. Na3 {[%emt 0:00:00]} Be7 {[%emt 0:00:00]} 8. Nc4 {[%emt 0:00:16]} b5 {[%emt 0:00:00]} 9. Ne3 {[%emt 0:00:00] OK} Nf6 {[%emt 0:00:00] OK} 10. Bd3 {[%emt 0:04:00]} O-O {[%emt 0:00:00] OK. Wit heeft hier iets.} 11. O-O {[%emt 0:00:00]} Nb4 {[%emt 0:00:00] OK} 12. Be2 {[%emt 0:05:18] OK} Be6 {[%emt 0:00:00]} 13. a3 {[%emt 0:06:24] OK} Nc6 {[%emt 0:00:00] OK} 14. Ned5 {[%emt 0:00:42] OK} Nd4 {[%emt 0:10:01] Onnauwkeurig} 15. Bd3 {[%emt 0:06:15] Beste} Nxd5 {[%emt 0:02:49] OK} 16. Nxd5 {[%emt 0:02:10]} Bg5 $1 {[%emt 0:09:37] Sterk} 17. Be3 {[%emt 0:15:05] Fout (0.5)} (17. Bxg5 $14 Qxg5 18. c3 Bxd5 19. exd5) 17... Bxe3 $11 {[%emt 0:08:47] OK} 18. Nxe3 {[%emt 0:00:00]} Rb8 {[%emt 0:15:00] OK} 19. c3 {[%emt 0:17:05]} {Zwart zou moeten proberen} Bb3 {[%emt 0:10:24] Fout (0.6)} (19... Nb3 $11) 20. Qd2 {[%emt 0:04:32]} Nc6 {[%emt 0:02:38] OK} 21. Bc2 {[%emt 0:05:39] Onnauwkeurig} Na5 {[%emt 0:02:06] OK} 22. Qe2 {[%emt 0:03:36]} Be6 {[%emt 0:01:43] Beste} 23. b4 {[%emt 0:03:12] OK} Nc4 {[%emt 0:02:38] OK} 24. Nxc4 {[%emt 0:00:06] OK} Bxc4 {[%emt 0:00:00]} 25. Bd3 {[%emt 0:00:00] OK} Bxd3 {[%emt 0:03:13]} 26. Qxd3 {[%emt 0:00:00]} Qc7 {[%emt 0:01:52] OK} 27. a4 {[%emt 0:03:10]} Rfc8 {[%emt 0:00:03] OK} 28. axb5 {[%emt 0:00:17] OK} axb5 {[%emt 0:00:00][%cal Rc7c3]} 29. Rfc1 {[%emt 0:00:00]} Rb6 {[%emt 0:03:39] kan beter zijn. Ontwijkt Ra6. Fout (0.5)} (29... Qc6 $11) 30. h3 {[%emt 0:05:53] Onnauwkeurig} h6 {[%emt 0:00:17]} 31. Ra5 {[%emt 0:00:35][%cal Ra5b5] OK} Qc4 {[%emt 0:10:28]} 32. Qe3 {[%emt 0:01:06] Onnauwkeurig} Rbc6 {[%emt 0:00:50] OK} 33. Rd1 {[%emt 0:01:24]} Qb3 {[%emt 0:01:02] Remt Ra3. OK} 34. Qe2 {[%emt 0:02:44] blijft gelijk. Fout (1.0)} (34. Qd2 $11) {Zwart kan overwegen.} 34... Rb8 {[%emt 0:05:29] Fout (1.0)} (34... Rxc3 $17 {Dreigt te winnen met ...Rb8.} 35. Rxb5 Rc1 36. Rxc1 Rxc1+ 37. Kh2 Rc2) 35. Rd5 {[%emt 0:01:30][%cal Rd5b5] De stelling is in evenwicht.} Qxc3 {[%emt 0:01:00] OK} 36. Raxb5 {[%emt 0:00:50] OK} Rcb6 {[%emt 0:01:33]} 37. Rxb6 {[%emt 0:00:00]} Rxb6 {[%emt 0:00:00][%mdl 4096] Eindspel. KQR-KQR} 38. b5 {[%emt 0:00:00] Beste (Gemakkelijk)} Qb4 {[%emt 0:01:03] OK} 39. Kh2 {[%emt 0:00:00]} Rb8 {[%emt 0:00:07]} 40. h4 {[%emt 0:02:48] OK} h5 {[%emt 0:00:25] OK} 41. Qd3 {[%emt 0:06:33]} g6 {[%emt 0:03:01] OK} 42. Rxd6 {[%emt 0:03:27] [#] Hoopt vervolgens op Rd8+. OK} Qxb5 {[%emt 0:03:58] OK} 43. Qc3 {[%emt 0:02:13]} Re8 {[%emt 0:01:31] OK} 44. Rd5 {[%emt 0:00:13]} Qb6 {[%emt 0:01:54]} 45. Qf3 {[%emt 0:02:02]} Qe6 {[%emt 0:01:09]} 46. g3 {[%emt 0:00:24]} Rc8 {[%emt 0:00:45] OK} 47. Kg2 {[%emt 0:00:50]} Re8 {[%emt 0:01:08]} 48. Qc3 {[%emt 0:00:14] OK} Qe7 {[%emt 0:00:35] OK} 49. Qc6 {[%emt 0:01:25]} Kg7 {[%emt 0:01:58] OK} 50. Rd7 {[%emt 0:00:15]} Qe6 {[%emt 0:01:04]} 51. Rd6 {[%emt 0:00:20]} Qe7 {[%emt 0:00:17]} 52. Qd5 {[%emt 0:00:06] OK} Rf8 {[%emt 0:02:21]} 53. Qc5 {[%emt 0:02:15][%cal Od6g6] [#] En nu zou Rxg6+! winnen.} Re8 {[%emt 0:00:31] OK} 54. Qd5 {[%emt 0:00:07] OK} Rf8 {[%emt 0:00:09]} 55. Rd7 {[%emt 0:00:18] OK} Qf6 {[%emt 0:00:21] OK} 56. Qc5 {[%emt 0:00:14] OK} Re8 {[%emt 0:00:48] Remt Re7.} 57. Qc7 {[%emt 0:01:06]} Qe6 {[%emt 0:01:30]} 58. Rd5 {[%emt 0:00:42] OK} Qe7 {[%emt 0:00:54]} 59. Qc3 {[%emt 0:00:14]} Kg8 {[%emt 0:00:23]} 60. Qc6 {[%emt 0:00:16] Blunder waarde: Wit=0.09 (foutloos) /Zwart=0.06 (foutloos) . OK.  Fout:        	Wit=2      	Zwart=3      Onnauwkeurig:    	Wit=3      	Zwart=1      OK:         	Wit=19     	Zwart=25     Beste:        	Wit=2      	Zwart=1      Sterk:        	---       	Zwart=1} 1/2-1/2

[Event "Fagernes GM Open Autumn 2024"]
[Site "Fagernes"]
[Date "2024.10.11"]
[Round "7.7"]
[White "Fiskaaen, Martin Holten"]
[Black "Urkedal, Frode Olav Olsen"]
[Result "0-1"]
[ECO "B51"]
[WhiteElo "2259"]
[BlackElo "2559"]
[Annotator "TA"]
[PlyCount "102"]
[EventDate "2024.10.03"]
[EventType "swiss"]
[EventCountry "NOR"]
[SourceTitle "playchess.com"]
[Source "ChessBase"]
[SourceQuality "1"]
[TimeControl "40/6000:2400+30"]

{[%evp 11,102,29,42,13,21,7,9,10,6,4,10,14,12,6,9,8,15,-10,-1,-20,-14,-20,-8,-25,-7,-36,-28,-39,-7,-19,-6,-12,-14,-16,-15,-31,-21,-16,-6,-5,0,-10,0,0,0,0,0,-22,-15,-13,-22,-20,-16,-87,-76,-155,-152,-201,-187,-201,-151,-233,-233,-258,-258,-241,-113,-141,-140,-152,-152,-303,-303,-303,-62,-360,-360,-327,-327,-6103,-5808,-6137,-5739,-29974,-29974,-29975,-29976,-29975,-29977,-29977,-29978,-29976,-29979]} 1. e4 {[%emt 0:00:00]} c5 {[%emt 0:00:00]} 2. Nf3 {[%emt 0:00:00]} d6 {[%emt 0:00:00]} 3. Bb5+ {[%emt 0:00:00]} Nd7 {[%emt 0:00:00]} 4. O-O {[%emt 0:00:00]} Ngf6 {[%emt 0:00:00]} 5. Re1 {[%emt 0:02:13]} a6 {[%emt 0:01:07]} 6. Bf1 {[%emt 0:00:19]} b6 {[%emt 0:00:00]} 7. c4 {[%emt 0:09:29]} Ne5 {[%emt 0:00:00]} 8. Nc3 {[%emt 0:10:23]} Bg4 {[%emt 0:14:11]} 9. Be2 {[%emt 0:01:03] The position is equal.} Bxf3 {[%emt 0:00:56]} 10. Bxf3 {[%emt 0:00:22]} Nxf3+ {[%emt 0:00:09]} 11. Qxf3 {[%emt 0:00:00]} g6 {[%emt 0:00:07]} 12. d3 {[%emt 0:06:29]} Bg7 {[%emt 0:00:00]} 13. Rb1 {[%emt 0:00:48]} O-O {[%emt 0:00:50]} 14. Bd2 {[%emt 0:05:43]} Nd7 {[%emt 0:00:10][%cal Bf6d7,Bd7e5,Be5c6,Bc6d4][%mdl 32]} 15. a3 {[%emt 0:01:36]} Ne5 {[%emt 0:00:21]} 16. Qh3 {[%emt 0:07:36]} Qc8 {[%emt 0:05:52] Threatens to win with ...Qxh3.} 17. Qe3 {[%emt 0:10:12]} e6 {[%emt 0:12:03][%cal Ob6b5]} 18. Qe2 {[%emt 0:02:16]} Nc6 {[%emt 0:02:41]} 19. b4 {[%emt 0:01:30]} Nd4 {[%emt 0:01:46]} 20. Qd1 {[%emt 0:00:27]} Rd8 {[%emt 0:05:09]} 21. Ne2 {[%emt 0:02:34]} b5 {[%emt 0:00:03]} 22. Nxd4 {[%emt 0:01:18]} Bxd4 {[%emt 0:00:00]} 23. Qc2 {[%emt 0:00:52]} Qc6 {[%emt 0:00:00]} 24. Rec1 {[%emt 0:00:43]} Rdc8 {[%emt 0:02:39]} 25. Bc3 {[%emt 0:07:52]} Bxc3 {[%emt 0:01:38]} 26. Qxc3 {[%emt 0:00:00]} Rab8 {[%emt 0:02:10]} 27. g3 {[%emt 0:02:12]} bxc4 {[%emt 0:08:55]} 28. Qxc4 {[%emt 0:00:10]} Qa4 {[%emt 0:03:41]} 29. bxc5 {[%emt 0:03:09]} Qxc4 {[%emt 0:00:00]} ({Much worse is} 29... Qxa3 $6 30. Rxb8 Rxb8 31. c6 $16) 30. dxc4 {[%emt 0:00:00]} Rxb1 {[%emt 0:00:00]} 31. Rxb1 {[%emt 0:00:00]} Rxc5 $11 {[%emt 0:00:00][%mdl 4096] Endgame. KR-KR} 32. Rb6 {[%emt 0:00:00]} (32. Rb8+ $1 $11 Kg7 33. Ra8) 32... a5 $1 $17 {[%emt 0:00:00]} 33. Rxd6 {[%emt 0:11:47]} (33. Ra6 $142) 33... Rxc4 {[%emt 0:00:00]} 34. Ra6 {[%emt 0:04:23]} (34. Kg2 $17) 34... Ra4 $19 {[%emt 0:00:00]} 35. h4 {[%emt 0:00:00]} Rxa3 {[%emt 0:00:00]} ({Not} 35... Rxe4 36. Rxa5 Kg7 37. Ra8 $11) 36. e5 {[%emt 0:00:45]} (36. Ra8+ $17 Kg7 37. Kg2) 36... h6 {[%emt 0:00:00]} 37. Kg2 {[%emt 0:01:10]} Kg7 {[%emt 0:00:00]} 38. Ra7 {[%emt 0:00:25]} g5 {[%emt 0:00:00]} (38... Ra1 $19 {and Black stays clearly on top. White must now prevent ...a4.} 39. Kf3 a4) 39. h5 {[%emt 0:01:40]} Ra2 {[%emt 0:00:00]} 40. Ra8 {[%emt 0:00:02]} a4 {[%emt 0:00:00]} 41. g4 $2 {[%emt 0:08:49]} (41. Ra6 $17) 41... a3 {[%emt 0:00:15]} 42. Kg3 {[%emt 0:10:50]} Ra1 {[%emt 0:01:19] Strongly threatening ...f5.} 43. Kf3 $2 {[%emt 0:01:09][%mdl 8192] [#] White does not recover from this.} (43. Kh2 $1 $15) 43... a2 $1 {[%emt 0:00:29]} 44. Kg2 {[%emt 0:04:03] [#]} f5 $1 {[%emt 0:00:38]} 45. gxf5 {[%emt 0:05:57]} (45. exf6+ Kxf6 46. Ra6) 45... exf5 {[%emt 0:00:46]} 46. Ra7+ {[%emt 0:00:07]} Kf8 {[%emt 0:00:18] ( -> ...g4)} 47. Kh2 {[%emt 0:09:27]} g4 {[%emt 0:00:27] Black mates.} 48. Ra4 {[%emt 0:04:01]} Ke7 {[%emt 0:00:06]} 49. Ra6 {[%emt 0:00:35]} f4 {[%emt 0:00:09]} 50. Kg2 {[%emt 0:00:15]} f3+ {[%emt 0:00:10]} 51. Kh2 {[%emt 0:00:21] [#]} g3+ $1 {[%emt 0:00:41][%mdl 512] Weighted Error Value: White=0.67/Black=0.07 (flawless) .  Loses game:     	White=1     	---        Mistake:       	White=6     	Black=1      Inaccurate:     	White=1     	Black=1      OK:         	White=11    	Black=14     Best:        	---       	Black=3      Strong:       	---       	Black=3} 0-1

[Event "Fagernes GM Open Autumn 2024"]
[Site "Fagernes"]
[Date "2024.10.11"]
[Round "7.8"]
[White "Amar, Elham"]
[Black "Myagmarsuren, Evsuld"]
[Result "1-0"]
[ECO "C01"]
[WhiteElo "2540"]
[BlackElo "2171"]
[Annotator "RC"]
[PlyCount "129"]
[EventDate "2024.10.03"]
[EventType "swiss"]
[EventCountry "NOR"]
[SourceTitle "playchess.com"]
[Source "ChessBase"]
[SourceQuality "1"]
[TimeControl "40/6000:2400+30"]

1. e4 {[%emt 0:01:32]} e6 {[%emt 0:00:00]} 2. d4 {[%emt 0:00:00]} d5 {[%emt 0:00:00]} 3. Nc3 {[%emt 0:00:00]} Bb4 {[%emt 0:00:00]} 4. exd5 {[%emt 0:00:00]} exd5 {[%emt 0:00:00]} 5. Bd3 {[%emt 0:00:00]} Nc6 {[%emt 0:00:00]} 6. a3 {[%emt 0:00:00]} Bd6 {[%emt 0:06:39]} 7. Nf3 {[%emt 0:09:08]} Nge7 {[%emt 0:04:36]} 8. Nb5 {[%emt 0:06:25]} h6 {[%emt 0:05:58]} 9. O-O {[%emt 0:02:36]} O-O {[%emt 0:00:00]} 10. Re1 {[%emt 0:06:43]} Bf5 {[%emt 0:02:16]} 11. Bf1 {[%emt 0:08:33]} Ng6 {[%emt 0:03:08]} 12. Nxd6 {[%emt 0:00:52]} Qxd6 {[%emt 0:00:00]} 13. Be3 {[%emt 0:01:45]} Rad8 {[%emt 0:02:28]} 14. a4 {[%emt 0:10:42]} Qf6 {[%emt 0:08:38]} 15. c3 {[%emt 0:07:25]} Bg4 {[%emt 0:09:27]} 16. Be2 {[%emt 0:00:00]} Nf4 {[%emt 0:01:49]} 17. Bxf4 {[%emt 0:00:00]} Qxf4 {[%emt 0:00:00]} 18. h3 {[%emt 0:01:56]} Bh5 {[%emt 0:00:34]} 19. Nd2 {[%emt 0:04:51]} Bxe2 {[%emt 0:01:05]} 20. Qxe2 {[%emt 0:00:06]} Rd6 {[%emt 0:05:56]} 21. Nf1 {[%emt 0:01:47]} a6 {[%emt 0:03:22]} 22. Qc2 {[%emt 0:05:40]} Re6 {[%emt 0:08:39]} 23. Qb3 {[%emt 0:01:03]} Qd6 {[%emt 0:00:17]} 24. Ne3 {[%emt 0:01:33]} Rfe8 {[%emt 0:00:13]} 25. Rf1 {[%emt 0:07:07]} Rd8 {[%emt 0:05:58]} 26. a5 {[%emt 0:00:52]} Na7 {[%emt 0:14:35]} 27. Qxb7 {[%emt 0:03:55]} Nb5 {[%emt 0:00:00]} 28. Rae1 {[%emt 0:01:21]} Qf8 {[%emt 0:02:25]} 29. Nf5 {[%emt 0:02:05]} Rf6 {[%emt 0:00:12]} 30. Ne7+ {[%emt 0:01:02]} Kh8 {[%emt 0:00:00]} 31. Nxd5 {[%emt 0:01:04]} Rb8 {[%emt 0:00:00]} 32. Nxf6 {[%emt 0:00:00]} Rxb7 {[%emt 0:00:00]} 33. Re8 {[%emt 0:00:00]} Qxe8 {[%emt 0:00:00]} 34. Nxe8 {[%emt 0:00:00]} c6 {[%emt 0:05:01]} 35. Rd1 {[%emt 0:04:57]} Rd7 {[%emt 0:01:17]} 36. Kf1 {[%emt 0:00:16]} c5 {[%emt 0:00:33]} 37. d5 {[%emt 0:00:11]} c4 {[%emt 0:00:00]} 38. d6 {[%emt 0:00:00]} Kg8 {[%emt 0:01:19]} 39. Nc7 {[%emt 0:00:00]} Nxc7 {[%emt 0:00:12]} 40. dxc7 {[%emt 0:00:00]} Rxc7 {[%emt 0:00:00]} 41. Rd6 {[%emt 0:39:51]} Rb7 {[%emt 0:40:32]} 42. Rb6 {[%emt 0:00:05]} Ra7 {[%emt 0:00:04]} 43. Ke2 {[%emt 0:00:08]} f5 {[%emt 0:00:19]} 44. f4 {[%emt 0:01:25]} Kf7 {[%emt 0:00:13]} 45. h4 {[%emt 0:00:44]} g6 {[%emt 0:00:39]} 46. h5 {[%emt 0:00:41]} gxh5 {[%emt 0:00:04]} 47. Rxh6 {[%emt 0:00:04]} Kg7 {[%emt 0:00:06]} 48. Rc6 {[%emt 0:00:45]} Rb7 {[%emt 0:00:10]} 49. Rb6 {[%emt 0:00:03]} Ra7 {[%emt 0:00:05]} 50. g3 {[%emt 0:00:16]} Re7+ {[%emt 0:00:32]} 51. Kd2 {[%emt 0:00:16]} Rd7+ {[%emt 0:00:19]} 52. Ke2 {[%emt 0:00:29]} Re7+ {[%emt 0:00:26]} 53. Kf3 {[%emt 0:00:57]} Ra7 {[%emt 0:00:16]} 54. Kg2 {[%emt 0:01:03]} Rd7 {[%emt 0:00:44]} 55. Kh3 {[%emt 0:00:15]} Rd2 {[%emt 0:00:41]} 56. Rxa6 {[%emt 0:01:28]} Rxb2 {[%emt 0:00:07]} 57. Rc6 {[%emt 0:00:07]} Ra2 {[%emt 0:00:21]} 58. Rxc4 {[%emt 0:00:14]} Rxa5 {[%emt 0:00:27]} 59. Rc7+ {[%emt 0:00:20]} Kf6 {[%emt 0:00:35]} 60. Rc6+ {[%emt 0:00:05]} Ke7 {[%emt 0:00:18]} 61. Kh4 {[%emt 0:00:05]} Kd7 {[%emt 0:00:13]} 62. Rh6 {[%emt 0:01:38]} Rc5 {[%emt 0:00:34]} 63. Rxh5 {[%emt 0:00:11]} Ke6 {[%emt 0:01:19]} 64. g4 {[%emt 0:00:10]} Kf6 {[%emt 0:00:53]} 65. Rxf5+ {[%emt 0:00:08]} 1-0